[Event "Titled Tuesday Blitz March 14 Early 2023"]
[White "Horak, Martin"]
[Black "Nguyen, Ngoc Truong Son"]
[WhiteFideId "367095"]
[BlackFideId "12401110"]
[WhiteElo "2091"]
[BlackElo "2571"]
[Result "0-1"]
[Round "01"]
[TimeControl "180+2"]
[Date "2023.03.14"]
[WhiteClock "0:00:04"]
[BlackClock "0:00:41"]

1. d4 {[%clk 0:02:56]}  Nf6 {[%clk 0:03:00]} 2. Nf3 {[%clk 0:02:55]}  g6 {[%clk 0:03:01]} 3. c4 {[%clk 0:02:55]}  Bg7 {[%clk 0:03:01]} 4. e3 {[%clk 0:02:54]}  O-O {[%clk 0:03:01]} 5. Be2 {[%clk 0:02:48]}  d6 {[%clk 0:03:02]} 6. Nc3 {[%clk 0:02:47]}  Nbd7 {[%clk 0:03:03]} 7. Qc2 {[%clk 0:02:46]}  e5 {[%clk 0:03:03]} 8. O-O {[%clk 0:02:47]}  Re8 {[%clk 0:03:02]} 9. dxe5 {[%clk 0:02:42]}  dxe5 {[%clk 0:03:02]} 10. Rd1 {[%clk 0:02:42]}  c6 {[%clk 0:03:01]} 11. b3 {[%clk 0:02:22]}  Qc7 {[%clk 0:02:52]} 12. Ba3 {[%clk 0:02:13]}  Bf8 {[%clk 0:02:52]} 13. Bxf8 {[%clk 0:02:11]}  Nxf8 {[%clk 0:02:53]} 14. c5 {[%clk 0:02:05]}  Bg4 {[%clk 0:02:47]} 15. h3 {[%clk 0:01:58]}  Bxf3 {[%clk 0:02:47]} 16. Bxf3 {[%clk 0:01:59]}  Ne6 {[%clk 0:02:44]} 17. b4 {[%clk 0:01:53]}  a5 {[%clk 0:02:36]} 18. a3 {[%clk 0:01:48]}  Kg7 {[%clk 0:02:24]} 19. Be2 {[%clk 0:01:45]}  axb4 {[%clk 0:02:18]} 20. axb4 {[%clk 0:01:45]}  b6 {[%clk 0:02:17]} 21. Na4 {[%clk 0:01:10]}  bxc5 {[%clk 0:02:13]} 22. Nxc5 {[%clk 0:01:07]}  Rxa1 {[%clk 0:02:12]} 23. Nxe6+ {[%clk 0:01:01]}  Rxe6 {[%clk 0:02:13]} 24. Rxa1 {[%clk 0:01:01]}  Qe7 {[%clk 0:01:36]} 25. Qc5 {[%clk 0:00:50]}  Nd5 {[%clk 0:01:19]} 26. Qxe7 {[%clk 0:00:31]}  Rxe7 {[%clk 0:01:20]} 27. b5 {[%clk 0:00:15]}  Nc3 {[%clk 0:01:20]} 28. Bf1 {[%clk 0:00:15]}  cxb5 {[%clk 0:01:20]} 29. Ra3 {[%clk 0:00:13]}  b4 {[%clk 0:01:20]} 30. Rb3 {[%clk 0:00:14]}  Rb7 {[%clk 0:01:20]} 31. Bc4 {[%clk 0:00:14]}  Kf6 {[%clk 0:01:18]} 32. Kf1 {[%clk 0:00:12]}  Ke7 {[%clk 0:01:17]} 33. Ke1 {[%clk 0:00:12]}  Kd6 {[%clk 0:01:13]} 34. Kd2 {[%clk 0:00:13]}  Kc5 {[%clk 0:01:14]} 35. Bd3 {[%clk 0:00:10]}  Ra7 {[%clk 0:01:06]} 36. Rxc3+ {[%clk 0:00:09]}  bxc3+ {[%clk 0:01:05]} 37. Kxc3 {[%clk 0:00:10]}  Ra2 {[%clk 0:00:55]} 38. Bc2 {[%clk 0:00:11]}  f5 {[%clk 0:00:53]} 39. g3 {[%clk 0:00:10]}  e4 {[%clk 0:00:51]} 40. h4 {[%clk 0:00:10]}  Ra1 {[%clk 0:00:45]} 41. Kd2 {[%clk 0:00:07]}  Kc4 {[%clk 0:00:45]} 42. Bd1 {[%clk 0:00:05]}  Ra2+ {[%clk 0:00:44]} 43. Ke1 {[%clk 0:00:05]}  Kd3 {[%clk 0:00:43]} 44. h5 {[%clk 0:00:04]}  Ra1 {[%clk 0:00:41]} 0-1


[Site "https://www.chess.com"]

[Event "Titled Tuesday Blitz March 14 Early 2023"]
[White "Rustemov, Alexander"]
[Black "Jaskolka, Tomasz"]
[WhiteFideId "4119002"]
[BlackFideId "1170791"]
[WhiteElo "2923"]
[BlackElo "2155"]
[Result "1/2-1/2"]
[Round "01"]
[TimeControl "180+2"]
[Date "2023.03.14"]
[WhiteClock "0:00:06"]
[BlackClock "0:00:07"]

1. d4 {[%clk 0:03:00]}  d5 {[%clk 0:02:59]} 2. c4 {[%clk 0:03:01]}  e5 {[%clk 0:02:59]} 3. dxe5 {[%clk 0:03:00]}  d4 {[%clk 0:03:00]} 4. Nf3 {[%clk 0:03:01]}  Nc6 {[%clk 0:03:00]} 5. a3 {[%clk 0:03:01]}  a5 {[%clk 0:03:01]} 6. g3 {[%clk 0:03:00]}  Nge7 {[%clk 0:03:01]} 7. Bg2 {[%clk 0:03:01]}  Ng6 {[%clk 0:03:01]} 8. O-O {[%clk 0:02:56]}  Be6 {[%clk 0:03:00]} 9. Qa4 {[%clk 0:02:45]}  Qd7 {[%clk 0:02:32]} 10. Ng5 {[%clk 0:02:43]}  Ngxe5 {[%clk 0:02:14]} 11. Nxe6 {[%clk 0:02:41]}  Qxe6 {[%clk 0:02:12]} 12. Nd2 {[%clk 0:02:33]}  Be7 {[%clk 0:01:55]} 13. Bd5 {[%clk 0:02:31]}  Qd7 {[%clk 0:01:35]} 14. f4 {[%clk 0:02:16]}  Ng4 {[%clk 0:01:32]} 15. Nf3 {[%clk 0:02:14]}  O-O {[%clk 0:01:26]} 16. h3 {[%clk 0:02:14]}  Nf6 {[%clk 0:01:08]} 17. Bxc6 {[%clk 0:02:13]}  bxc6 {[%clk 0:01:08]} 18. Kg2 {[%clk 0:02:11]}  c5 {[%clk 0:00:59]} 19. Qxd7 {[%clk 0:02:07]}  Nxd7 {[%clk 0:00:59]} 20. e3 {[%clk 0:02:03]}  Nb6 {[%clk 0:00:43]} 21. exd4 {[%clk 0:01:48]}  Nxc4 {[%clk 0:00:32]} 22. Ne5 {[%clk 0:01:41]}  Nb6 {[%clk 0:00:18]} 23. Nc6 {[%clk 0:01:36]}  Bd6 {[%clk 0:00:19]} 24. dxc5 {[%clk 0:01:30]}  Bxc5 {[%clk 0:00:19]} 25. Bd2 {[%clk 0:01:31]}  Rfe8 {[%clk 0:00:19]} 26. Rae1 {[%clk 0:01:18]}  a4 {[%clk 0:00:19]} 27. Rxe8+ {[%clk 0:01:13]}  Rxe8 {[%clk 0:00:19]} 28. Re1 {[%clk 0:01:14]}  Rxe1 {[%clk 0:00:19]} 29. Bxe1 {[%clk 0:01:14]}  Nc4 {[%clk 0:00:19]} 30. Bc3 {[%clk 0:01:14]}  f6 {[%clk 0:00:17]} 31. Kf3 {[%clk 0:01:07]}  Kf7 {[%clk 0:00:18]} 32. Ke4 {[%clk 0:01:06]}  Ke6 {[%clk 0:00:18]} 33. f5+ {[%clk 0:00:56]}  Kd6 {[%clk 0:00:10]} 34. Nd8 {[%clk 0:00:54]}  Nb6 {[%clk 0:00:09]} 35. Ne6 {[%clk 0:00:51]}  Bf2 {[%clk 0:00:08]} 36. g4 {[%clk 0:00:46]}  g6 {[%clk 0:00:09]} 37. Bxf6 {[%clk 0:00:44]}  gxf5+ {[%clk 0:00:09]} 38. gxf5 {[%clk 0:00:38]}  Nc4 {[%clk 0:00:10]} 39. Bc3 {[%clk 0:00:33]}  Bh4 {[%clk 0:00:09]} 40. Bb4+ {[%clk 0:00:26]}  Kd7 {[%clk 0:00:08]} 41. Nc5+ {[%clk 0:00:26]}  Kc6 {[%clk 0:00:07]} 42. Nxa4 {[%clk 0:00:26]}  Kb5 {[%clk 0:00:07]} 43. Nc3+ {[%clk 0:00:25]}  Kc6 {[%clk 0:00:08]} 44. b3 {[%clk 0:00:24]}  Nd2+ {[%clk 0:00:08]} 45. Ke5 {[%clk 0:00:21]}  Nf3+ {[%clk 0:00:09]} 46. Ke6 {[%clk 0:00:19]}  Nd4+ {[%clk 0:00:09]} 47. Ke5 {[%clk 0:00:18]}  Nf3+ {[%clk 0:00:07]} 48. Kf4 {[%clk 0:00:18]}  Nd4 {[%clk 0:00:08]} 49. Ne4 {[%clk 0:00:14]}  Nxb3 {[%clk 0:00:08]} 50. f6 {[%clk 0:00:14]}  Nd4 {[%clk 0:00:08]} 51. f7 {[%clk 0:00:14]}  Kd5 {[%clk 0:00:08]} 52. f8=Q {[%clk 0:00:11]}  Ne6+ {[%clk 0:00:09]} 53. Kg4 {[%clk 0:00:10]}  Nxf8 {[%clk 0:00:10]} 54. Bxf8 {[%clk 0:00:07]}  Be1 {[%clk 0:00:08]} 55. Ng5 {[%clk 0:00:05]}  c5 {[%clk 0:00:07]} 56. Nxh7 {[%clk 0:00:05]}  c4 {[%clk 0:00:07]} 57. Bh6 {[%clk 0:00:05]}  c3 {[%clk 0:00:07]} 58. a4 {[%clk 0:00:05]}  Bd2 {[%clk 0:00:05]} 59. Nf6+ {[%clk 0:00:05]}  Kd4 {[%clk 0:00:04]} 60. Bg7 {[%clk 0:00:01]}  c2 {[%clk 0:00:04]} 61. Nd7+ {[%clk 0:00:01]}  Kd3 {[%clk 0:00:05]} 62. Bb2 {[%clk 0:00:02]}  Bc3 {[%clk 0:00:05]} 63. Bc1 {[%clk 0:00:01]}  Bd2 {[%clk 0:00:06]} 64. Bb2 {[%clk 0:00:02]}  Bc3 {[%clk 0:00:06]} 65. Ba3 {[%clk 0:00:02]}  Bb4 {[%clk 0:00:06]} 66. Ne5+ {[%clk 0:00:03]}  Ke4 {[%clk 0:00:04]} 67. Bb2 {[%clk 0:00:03]}  Bc3 {[%clk 0:00:04]} 68. Bc1 {[%clk 0:00:02]}  Bxe5 {[%clk 0:00:04]} 69. a5 {[%clk 0:00:03]}  Bd4 {[%clk 0:00:05]} 70. a6 {[%clk 0:00:03]}  Be3 {[%clk 0:00:05]} 71. Bxe3 {[%clk 0:00:03]}  Kxe3 {[%clk 0:00:05]} 72. a7 {[%clk 0:00:04]}  c1=Q {[%clk 0:00:06]} 73. a8=Q {[%clk 0:00:05]}  Qc4+ {[%clk 0:00:07]} 74. Kg3 {[%clk 0:00:04]}  Qf4+ {[%clk 0:00:07]} 75. Kg2 {[%clk 0:00:05]}  Qf2+ {[%clk 0:00:07]} 76. Kh1 {[%clk 0:00:05]}  Qf1+ {[%clk 0:00:06]} 77. Kh2 {[%clk 0:00:05]}  Qf4+ {[%clk 0:00:07]} 78. Kh1 {[%clk 0:00:05]}  Qf1+ {[%clk 0:00:07]} 79. Kh2 {[%clk 0:00:06]}  Qf4+ {[%clk 0:00:07]} 80. Kh1 {[%clk 0:00:06]}  Qf1+ {[%clk 0:00:07]} 1/2-1/2


[Site "https://www.chess.com"]

[Event "Titled Tuesday Blitz March 14 Early 2023"]
[White "Degenbaev, Aziz"]
[Black "Talibov, Shiroghlan"]
[WhiteFideId "13802640"]
[BlackFideId "13429078"]
[WhiteElo "2152"]
[BlackElo "2218"]
[Result "0-1"]
[Round "01"]
[TimeControl "180+2"]
[Date "2023.03.14"]
[WhiteClock "0:00:06"]
[BlackClock "0:00:45"]

1. e4 {[%clk 0:03:00]}  c5 {[%clk 0:02:54]} 2. Nf3 {[%clk 0:03:00]}  d6 {[%clk 0:02:51]} 3. d4 {[%clk 0:03:00]}  cxd4 {[%clk 0:02:52]} 4. Nxd4 {[%clk 0:03:01]}  Nf6 {[%clk 0:02:52]} 5. Nc3 {[%clk 0:03:01]}  a6 {[%clk 0:02:53]} 6. Be2 {[%clk 0:03:01]}  g6 {[%clk 0:02:51]} 7. Be3 {[%clk 0:02:54]}  Bg7 {[%clk 0:02:51]} 8. f3 {[%clk 0:02:55]}  h5 {[%clk 0:02:52]} 9. Qd2 {[%clk 0:02:52]}  b5 {[%clk 0:02:52]} 10. a3 {[%clk 0:02:39]}  Bb7 {[%clk 0:02:52]} 11. O-O-O {[%clk 0:02:27]}  Nbd7 {[%clk 0:02:50]} 12. Rde1 {[%clk 0:02:12]}  Rc8 {[%clk 0:02:49]} 13. Kb1 {[%clk 0:02:05]}  Qc7 {[%clk 0:02:40]} 14. Rhf1 {[%clk 0:02:01]}  O-O {[%clk 0:02:28]} 15. Bd3 {[%clk 0:01:52]}  Nc5 {[%clk 0:02:18]} 16. Bh6 {[%clk 0:01:34]}  e5 {[%clk 0:02:16]} 17. Nde2 {[%clk 0:01:30]}  Nxd3 {[%clk 0:02:08]} 18. cxd3 {[%clk 0:01:30]}  d5 {[%clk 0:02:06]} 19. Bxg7 {[%clk 0:01:28]}  Kxg7 {[%clk 0:02:06]} 20. g4 {[%clk 0:01:28]}  d4 {[%clk 0:02:04]} 21. g5 {[%clk 0:01:08]}  Nd7 {[%clk 0:02:03]} 22. Na2 {[%clk 0:01:02]}  Nc5 {[%clk 0:02:01]} 23. f4 {[%clk 0:00:59]}  a5 {[%clk 0:01:33]} 24. Nec1 {[%clk 0:00:38]}  b4 {[%clk 0:01:19]} 25. axb4 {[%clk 0:00:29]}  axb4 {[%clk 0:01:20]} 26. Nxb4 {[%clk 0:00:30]}  Ra8 {[%clk 0:01:19]} 27. Nca2 {[%clk 0:00:24]}  Qa5 {[%clk 0:01:12]} 28. fxe5 {[%clk 0:00:20]}  Ba6 {[%clk 0:01:08]} 29. Rf3 {[%clk 0:00:17]}  Nd7 {[%clk 0:00:58]} 30. Qf4 {[%clk 0:00:14]}  Nxe5 {[%clk 0:00:49]} 31. Qf6+ {[%clk 0:00:13]}  Kg8 {[%clk 0:00:49]} 32. Rd1 {[%clk 0:00:14]}  Nxf3 {[%clk 0:00:47]} 33. Qxf3 {[%clk 0:00:09]}  Bc8 {[%clk 0:00:46]} 34. Qf6 {[%clk 0:00:06]}  Be6 {[%clk 0:00:46]} 35. Nc1 {[%clk 0:00:06]}  Qxb4 {[%clk 0:00:45]} 0-1


[Site "https://www.chess.com"]

[Event "Titled Tuesday Blitz March 14 Early 2023"]
[White "Timofeev, Artyom"]
[Black "Aslanov, Umid"]
[WhiteFideId "4140419"]
[BlackFideId "13412620"]
[WhiteElo "2586"]
[BlackElo "2103"]
[Result "1-0"]
[Round "01"]
[TimeControl "180+2"]
[Date "2023.03.14"]
[WhiteClock "0:01:20"]
[BlackClock "0:00:21"]

1. e4 {[%clk 0:02:51]}  c5 {[%clk 0:02:58]} 2. Nf3 {[%clk 0:02:50]}  d6 {[%clk 0:02:58]} 3. d4 {[%clk 0:02:49]}  cxd4 {[%clk 0:02:59]} 4. Nxd4 {[%clk 0:02:48]}  Nf6 {[%clk 0:02:59]} 5. Nc3 {[%clk 0:02:48]}  a6 {[%clk 0:03:00]} 6. Be3 {[%clk 0:02:48]}  e5 {[%clk 0:03:00]} 7. Nf3 {[%clk 0:02:48]}  Be7 {[%clk 0:03:00]} 8. Bc4 {[%clk 0:02:47]}  O-O {[%clk 0:02:59]} 9. O-O {[%clk 0:02:47]}  Be6 {[%clk 0:02:59]} 10. Qd3 {[%clk 0:02:46]}  Bxc4 {[%clk 0:02:55]} 11. Qxc4 {[%clk 0:02:45]}  b5 {[%clk 0:02:55]} 12. Qd3 {[%clk 0:02:44]}  Nbd7 {[%clk 0:02:50]} 13. Rfd1 {[%clk 0:02:42]}  Nb6 {[%clk 0:02:34]} 14. Bxb6 {[%clk 0:02:35]}  Qxb6 {[%clk 0:02:35]} 15. Nd5 {[%clk 0:02:34]}  Nxd5 {[%clk 0:02:35]} 16. Qxd5 {[%clk 0:02:35]}  Rac8 {[%clk 0:02:34]} 17. c3 {[%clk 0:02:34]}  Rc5 {[%clk 0:02:32]} 18. Qd3 {[%clk 0:02:32]}  a5 {[%clk 0:02:24]} 19. g3 {[%clk 0:02:29]}  Qc6 {[%clk 0:02:13]} 20. Nd2 {[%clk 0:02:26]}  a4 {[%clk 0:01:55]} 21. h4 {[%clk 0:02:24]}  Rd8 {[%clk 0:01:50]} 22. Nf1 {[%clk 0:02:22]}  Rc4 {[%clk 0:01:29]} 23. Ne3 {[%clk 0:02:12]}  Rc5 {[%clk 0:01:20]} 24. Nd5 {[%clk 0:02:11]}  Bf8 {[%clk 0:01:18]} 25. h5 {[%clk 0:02:04]}  Qd7 {[%clk 0:01:13]} 26. Qf3 {[%clk 0:02:01]}  Qe6 {[%clk 0:01:09]} 27. Rd3 {[%clk 0:01:59]}  g6 {[%clk 0:00:58]} 28. Rad1 {[%clk 0:01:48]}  Rc6 {[%clk 0:00:55]} 29. Kg2 {[%clk 0:01:44]}  Rc4 {[%clk 0:00:44]} 30. b3 {[%clk 0:01:39]}  axb3 {[%clk 0:00:43]} 31. axb3 {[%clk 0:01:39]}  Rc6 {[%clk 0:00:42]} 32. Rh1 {[%clk 0:01:38]}  Bg7 {[%clk 0:00:36]} 33. h6 {[%clk 0:01:36]}  Bh8 {[%clk 0:00:34]} 34. Rhd1 {[%clk 0:01:28]}  f5 {[%clk 0:00:29]} 35. exf5 {[%clk 0:01:26]}  gxf5 {[%clk 0:00:29]} 36. Ne7+ {[%clk 0:01:23]}  Qxe7 {[%clk 0:00:28]} 37. Qxc6 {[%clk 0:01:23]}  f4 {[%clk 0:00:21]} 38. Rxd6 {[%clk 0:01:20]} 1-0


[Site "https://www.chess.com"]

[Event "Titled Tuesday Blitz March 14 Early 2023"]
[White "Rom, Jasper"]
[Black "Bachmann, Axel"]
[WhiteFideId "2023733"]
[BlackFideId "3700488"]
[WhiteElo "2233"]
[BlackElo "2605"]
[Result "0-1"]
[Round "01"]
[TimeControl "180+2"]
[Date "2023.03.14"]
[WhiteClock "0:00:01"]
[BlackClock "0:00:59"]

1. e4 {[%clk 0:02:52]}  c5 {[%clk 0:02:56]} 2. Nc3 {[%clk 0:02:50]}  e6 {[%clk 0:02:56]} 3. f4 {[%clk 0:02:50]}  a6 {[%clk 0:02:56]} 4. g3 {[%clk 0:02:49]}  b5 {[%clk 0:02:56]} 5. Bg2 {[%clk 0:02:49]}  Bb7 {[%clk 0:02:57]} 6. Nh3 {[%clk 0:02:50]}  Nf6 {[%clk 0:02:53]} 7. d3 {[%clk 0:02:49]}  b4 {[%clk 0:02:52]} 8. Nb1 {[%clk 0:02:48]}  d5 {[%clk 0:02:50]} 9. Nf2 {[%clk 0:02:41]}  dxe4 {[%clk 0:02:48]} 10. dxe4 {[%clk 0:02:41]}  Qxd1+ {[%clk 0:02:49]} 11. Kxd1 {[%clk 0:02:41]}  Nc6 {[%clk 0:02:48]} 12. Be3 {[%clk 0:02:39]}  O-O-O+ {[%clk 0:02:42]} 13. Kc1 {[%clk 0:02:37]}  Nd4 {[%clk 0:02:38]} 14. Re1 {[%clk 0:02:32]}  h5 {[%clk 0:02:36]} 15. h3 {[%clk 0:02:26]}  a5 {[%clk 0:02:15]} 16. c3 {[%clk 0:02:09]}  Nb5 {[%clk 0:02:12]} 17. Bh1 {[%clk 0:01:34]}  a4 {[%clk 0:02:04]} 18. a3 {[%clk 0:01:19]}  bxc3 {[%clk 0:01:47]} 19. Nxc3 {[%clk 0:01:19]}  Nd4 {[%clk 0:01:48]} 20. Kb1 {[%clk 0:00:56]}  Nb3 {[%clk 0:01:45]} 21. Nxa4 {[%clk 0:00:49]}  Nxa1 {[%clk 0:01:44]} 22. Kxa1 {[%clk 0:00:50]}  Nd7 {[%clk 0:01:39]} 23. Rc1 {[%clk 0:00:46]}  Kb8 {[%clk 0:01:39]} 24. Nd3 {[%clk 0:00:33]}  f5 {[%clk 0:01:26]} 25. exf5 {[%clk 0:00:13]}  Bxh1 {[%clk 0:01:27]} 26. Rxh1 {[%clk 0:00:13]}  exf5 {[%clk 0:01:26]} 27. Ndxc5 {[%clk 0:00:13]}  Nxc5 {[%clk 0:01:25]} 28. Nxc5 {[%clk 0:00:13]}  Bxc5 {[%clk 0:01:24]} 29. Bxc5 {[%clk 0:00:14]}  Rd3 {[%clk 0:01:25]} 30. Rg1 {[%clk 0:00:13]}  Re8 {[%clk 0:01:23]} 31. Bb4 {[%clk 0:00:11]}  Ree3 {[%clk 0:01:20]} 32. g4 {[%clk 0:00:10]}  fxg4 {[%clk 0:01:16]} 33. hxg4 {[%clk 0:00:11]}  h4 {[%clk 0:01:17]} 34. Bc3 {[%clk 0:00:05]}  Rg3 {[%clk 0:01:16]} 35. Rf1 {[%clk 0:00:02]}  Rxg4 {[%clk 0:01:13]} 36. f5 {[%clk 0:00:02]}  h3 {[%clk 0:01:12]} 37. Be5+ {[%clk 0:00:01]}  Ka8 {[%clk 0:01:11]} 38. f6 {[%clk 0:00:01]}  gxf6 {[%clk 0:01:09]} 39. Rxf6 {[%clk 0:00:02]}  Re3 {[%clk 0:01:08]} 40. Bd6 {[%clk 0:00:01]}  Rh4 {[%clk 0:01:02]} 41. Rf2 {[%clk 0:00:01]}  Re1+ {[%clk 0:00:59]} 42. Ka2 {[%clk 0:00:01]}  Rg1 {[%clk 0:00:59]} 0-1


[Site "https://www.chess.com"]

[Event "Titled Tuesday Blitz March 14 Early 2023"]
[White "Salinas Herrera, Pablo"]
[Black "Astafurov, Arseniy"]
[WhiteFideId "3407128"]
[BlackFideId "24175218"]
[WhiteElo "2550"]
[BlackElo "2163"]
[Result "1-0"]
[Round "01"]
[TimeControl "180+2"]
[Date "2023.03.14"]
[WhiteClock "0:01:25"]
[BlackClock "0:00:23"]

1. d4 {[%clk 0:03:00]}  Nf6 {[%clk 0:02:59]} 2. Nf3 {[%clk 0:03:00]}  d5 {[%clk 0:02:59]} 3. Bf4 {[%clk 0:03:00]}  c5 {[%clk 0:02:59]} 4. e3 {[%clk 0:03:00]}  Nc6 {[%clk 0:03:00]} 5. Nbd2 {[%clk 0:03:00]}  Bf5 {[%clk 0:02:57]} 6. dxc5 {[%clk 0:02:56]}  e6 {[%clk 0:02:52]} 7. Nb3 {[%clk 0:02:55]}  Be7 {[%clk 0:02:40]} 8. Nfd4 {[%clk 0:02:51]}  Bg6 {[%clk 0:02:29]} 9. Bb5 {[%clk 0:02:48]}  Rc8 {[%clk 0:01:57]} 10. Nxc6 {[%clk 0:02:47]}  bxc6 {[%clk 0:01:50]} 11. Ba6 {[%clk 0:02:48]}  O-O {[%clk 0:01:49]} 12. Bxc8 {[%clk 0:02:47]}  Qxc8 {[%clk 0:01:50]} 13. O-O {[%clk 0:02:47]}  Ne4 {[%clk 0:01:48]} 14. Rc1 {[%clk 0:02:43]}  Qa6 {[%clk 0:01:28]} 15. a3 {[%clk 0:02:15]}  f6 {[%clk 0:01:14]} 16. Bd6 {[%clk 0:01:55]}  Nxd6 {[%clk 0:01:12]} 17. cxd6 {[%clk 0:01:56]}  Bxd6 {[%clk 0:01:13]} 18. c4 {[%clk 0:01:55]}  Be5 {[%clk 0:00:52]} 19. cxd5 {[%clk 0:01:54]}  cxd5 {[%clk 0:00:52]} 20. Nd4 {[%clk 0:01:45]}  Bf7 {[%clk 0:00:44]} 21. Qd2 {[%clk 0:01:42]}  Qb7 {[%clk 0:00:40]} 22. Rc3 {[%clk 0:01:38]}  Bc7 {[%clk 0:00:35]} 23. Rfc1 {[%clk 0:01:37]}  Bb6 {[%clk 0:00:34]} 24. b4 {[%clk 0:01:33]}  Qd7 {[%clk 0:00:31]} 25. Nb3 {[%clk 0:01:30]}  h6 {[%clk 0:00:29]} 26. Nc5 {[%clk 0:01:30]}  Qd6 {[%clk 0:00:29]} 27. a4 {[%clk 0:01:29]}  Qe5 {[%clk 0:00:24]} 28. Nd7 {[%clk 0:01:26]}  Qd6 {[%clk 0:00:22]} 29. Nxf8 {[%clk 0:01:26]}  Kxf8 {[%clk 0:00:23]} 30. Rc8+ {[%clk 0:01:25]}  Ke7 {[%clk 0:00:23]} 31. a5 {[%clk 0:01:25]} 1-0


[Site "https://www.chess.com"]

[Event "Titled Tuesday Blitz March 14 Early 2023"]
[White "Liang, Justin"]
[Black "Ider, Borya"]
[WhiteFideId "2099942"]
[BlackFideId "4901134"]
[WhiteElo "2498"]
[BlackElo "2512"]
[Result "0-1"]
[Round "01"]
[TimeControl "180+2"]
[Date "2023.03.14"]
[WhiteClock "0:00:07"]
[BlackClock "0:02:03"]

1. Nf3 {[%clk 0:00:51]}  e6 {[%clk 0:03:00]} 2. d4 {[%clk 0:00:49]}  Nf6 {[%clk 0:03:00]} 3. g3 {[%clk 0:00:50]}  b5 {[%clk 0:03:00]} 4. Bg2 {[%clk 0:00:51]}  Bb7 {[%clk 0:03:00]} 5. O-O {[%clk 0:00:51]}  c5 {[%clk 0:03:00]} 6. c3 {[%clk 0:00:51]}  Be7 {[%clk 0:03:00]} 7. Nbd2 {[%clk 0:00:50]}  O-O {[%clk 0:02:58]} 8. Re1 {[%clk 0:00:48]}  d5 {[%clk 0:02:51]} 9. dxc5 {[%clk 0:00:47]}  Bxc5 {[%clk 0:02:51]} 10. Nb3 {[%clk 0:00:47]}  Bb6 {[%clk 0:02:50]} 11. Bf4 {[%clk 0:00:47]}  Nbd7 {[%clk 0:02:47]} 12. h3 {[%clk 0:00:39]}  Ne4 {[%clk 0:02:45]} 13. Rf1 {[%clk 0:00:32]}  a5 {[%clk 0:02:40]} 14. Nbd4 {[%clk 0:00:32]}  b4 {[%clk 0:02:38]} 15. cxb4 {[%clk 0:00:27]}  axb4 {[%clk 0:02:39]} 16. Be3 {[%clk 0:00:20]}  Qe7 {[%clk 0:02:28]} 17. Nc2 {[%clk 0:00:15]}  Bc7 {[%clk 0:02:19]} 18. a3 {[%clk 0:00:11]}  bxa3 {[%clk 0:02:15]} 19. Rxa3 {[%clk 0:00:12]}  Rac8 {[%clk 0:02:10]} 20. b4 {[%clk 0:00:11]}  Bd6 {[%clk 0:02:05]} 21. Qe1 {[%clk 0:00:07]}  Rxc2 {[%clk 0:02:03]} 0-1


[Site "https://www.chess.com"]

[Event "Titled Tuesday Blitz March 14 Early 2023"]
[White "Zhigalko, Sergei"]
[Black "Gireman, Ja"]
[WhiteFideId "13502956"]
[BlackFideId "5043794"]
[WhiteElo "2626"]
[BlackElo "2153"]
[Result "1-0"]
[Round "01"]
[TimeControl "180+2"]
[Date "2023.03.14"]
[WhiteClock "0:00:02"]
[BlackClock "0:00:09"]

1. e4 {[%clk 0:03:00]}  e6 {[%clk 0:02:55]} 2. d4 {[%clk 0:03:00]}  d5 {[%clk 0:02:55]} 3. e5 {[%clk 0:03:00]}  Be7 {[%clk 0:02:49]} 4. Nf3 {[%clk 0:02:59]}  c5 {[%clk 0:02:47]} 5. c3 {[%clk 0:02:59]}  Nc6 {[%clk 0:02:47]} 6. Bd3 {[%clk 0:02:59]}  Qb6 {[%clk 0:02:41]} 7. dxc5 {[%clk 0:02:55]}  Qxc5 {[%clk 0:02:42]} 8. O-O {[%clk 0:02:54]}  a5 {[%clk 0:02:40]} 9. a4 {[%clk 0:02:50]}  Qb6 {[%clk 0:02:35]} 10. Na3 {[%clk 0:02:50]}  f6 {[%clk 0:02:28]} 11. Be3 {[%clk 0:02:26]}  Qd8 {[%clk 0:02:27]} 12. Bf4 {[%clk 0:02:13]}  fxe5 {[%clk 0:02:17]} 13. Nxe5 {[%clk 0:02:13]}  Nf6 {[%clk 0:02:17]} 14. Nb5 {[%clk 0:02:11]}  O-O {[%clk 0:02:17]} 15. Qe2 {[%clk 0:02:07]}  Ne4 {[%clk 0:02:06]} 16. Bg3 {[%clk 0:01:31]}  Nxg3 {[%clk 0:02:05]} 17. hxg3 {[%clk 0:01:24]}  Nxe5 {[%clk 0:02:04]} 18. Qxe5 {[%clk 0:01:24]}  Bf6 {[%clk 0:02:03]} 19. Qe2 {[%clk 0:01:16]}  e5 {[%clk 0:02:00]} 20. Rad1 {[%clk 0:01:14]}  Qe7 {[%clk 0:01:57]} 21. Bc2 {[%clk 0:01:00]}  Be6 {[%clk 0:01:57]} 22. Bb3 {[%clk 0:01:01]}  Rad8 {[%clk 0:01:57]} 23. Rd2 {[%clk 0:00:56]}  Qf7 {[%clk 0:01:56]} 24. Rfd1 {[%clk 0:00:55]}  Bg5 {[%clk 0:01:44]} 25. Rd3 {[%clk 0:00:52]}  e4 {[%clk 0:01:44]} 26. Rd4 {[%clk 0:00:45]}  h5 {[%clk 0:01:39]} 27. f4 {[%clk 0:00:16]}  exf3 {[%clk 0:01:36]} 28. gxf3 {[%clk 0:00:16]}  h4 {[%clk 0:01:10]} 29. gxh4 {[%clk 0:00:10]}  Bf6 {[%clk 0:01:09]} 30. Rf4 {[%clk 0:00:07]}  Rfe8 {[%clk 0:01:08]} 31. Qg2 {[%clk 0:00:07]}  Kh8 {[%clk 0:01:05]} 32. Nd4 {[%clk 0:00:07]}  Bc8 {[%clk 0:01:02]} 33. Bc2 {[%clk 0:00:06]}  Qh5 {[%clk 0:00:46]} 34. Bg6 {[%clk 0:00:05]}  Qh6 {[%clk 0:00:46]} 35. Rxf6 {[%clk 0:00:03]}  gxf6 {[%clk 0:00:46]} 36. Bxe8 {[%clk 0:00:03]}  Rxe8 {[%clk 0:00:46]} 37. Qf2 {[%clk 0:00:03]}  Rg8+ {[%clk 0:00:45]} 38. Kf1 {[%clk 0:00:03]}  Bh3+ {[%clk 0:00:45]} 39. Ke1 {[%clk 0:00:04]}  Rg2 {[%clk 0:00:39]} 40. Nf5 {[%clk 0:00:03]}  Qf4 {[%clk 0:00:28]} 41. Qe3 {[%clk 0:00:03]}  Qxf5 {[%clk 0:00:27]} 42. c4 {[%clk 0:00:04]}  Qh5 {[%clk 0:00:16]} 43. Rxd5 {[%clk 0:00:01]}  Qxh4+ {[%clk 0:00:16]} 44. Kd1 {[%clk 0:00:02]}  Qxc4 {[%clk 0:00:11]} 45. Qh6+ {[%clk 0:00:02]}  Kg8 {[%clk 0:00:11]} 46. Rd8+ {[%clk 0:00:02]}  Kf7 {[%clk 0:00:10]} 47. Qh7+ {[%clk 0:00:02]}  Rg7 {[%clk 0:00:09]} 48. Qh5+ {[%clk 0:00:02]}  Ke7 {[%clk 0:00:09]} 49. Qe8# {[%clk 0:00:02]} 1-0


[Site "https://www.chess.com"]